fUSD/lending_fUSD_20250421
["ID","MTS","AMOUNT","RATE_DAILY","PERIOD"]
[358503527,1745218246859,-575.38853831,0.00064108,120]
[358503528,1745218246869,-562.32915329,0.00064108,120]
[358503529,1745218246879,-519.67964926,0.00064108,120]
[358503530,1745218246888,-517.99445116,0.00064108,120]
[358503531,1745218246898,-500.0,0.00064108,120]
[358503532,1745218246907,-514.29038608,0.00064108,120]
[358503533,1745218246916,-505.20800233,0.00064108,120]
[358503534,1745218246926,-500.0,0.00064108,120]
[358503535,1745218246935,-500.0,0.00064108,120]
[358503536,1745218246945,-252.86449582,0.00064108,120]
[358503537,1745218246954,-500.0,0.00064108,120]
[358503538,1745218246966,-500.0,0.00064108,120]
[358503539,1745218246976,-511.63291399,0.00064108,120]
[358503540,1745218246985,-555.47710427,0.00064108,120]
[358503541,1745218246994,-500.0,0.00064108,120]
[358503542,1745218247003,-500.0,0.00064108,120]
[358503543,1745218247013,-500.0,0.00064108,120]
[358503544,1745218247023,-534.69,0.00064108,120]
[358503545,1745218247033,-500.0,0.00064108,120]
[358503546,1745218247043,-643.64329807,0.00064108,120]
[358503547,1745218247052,-567.5341849,0.00064108,120]
[358503548,1745218247062,-512.07217433,0.00064108,120]
[358503549,1745218247072,-537.32023234,0.00064108,120]
[358503550,1745218247081,-500.0,0.00064108,120]
[358503551,1745218247091,-500.0,0.00064108,120]
[358503552,1745218247100,-500.0,0.00064108,120]
[358503553,1745218247110,-578.51,0.00064108,120]
[358503554,1745218247120,-500.0,0.00064108,120]
[358503555,1745218247130,-516.48081853,0.00064108,120]
[358503556,1745218247140,-512.42799629,0.00064108,120]
[358503557,1745218247150,-517.30172272,0.00064108,120]
[358503558,1745218247159,-514.31095016,0.00064108,120]
[358503559,1745218247169,-230.10880735,0.00064108,120]
[358503560,1745218247179,-225.16996177,0.00064108,120]
[358503561,1745218247189,-515.15951475,0.00064108,120]
[358503562,1745218247198,-517.02208598,0.00064108,120]
[358503563,1745218247208,-576.32409635,0.00064108,120]
[358503564,1745218247218,-514.13454002,0.00064108,120]
[358503565,1745218247230,-500.0,0.00064108,120]
[358503566,1745218247239,-500.0,0.00064108,120]
[358503567,1745218247248,-544.27143679,0.00064108,120]
[358503568,1745218247258,-527.82495546,0.00064108,120]
[358503569,1745218247269,-500.0,0.00064108,120]
[358503570,1745218247279,-535.66830621,0.00064108,120]
[358503571,1745218247289,-500.0,0.00064108,120]
[358503572,1745218247300,-551.97794718,0.00064108,120]
[358503573,1745218247309,-607.63087373,0.00064108,120]
[358503574,1745218247319,-527.72726747,0.00064108,120]
[358503575,1745218247328,-500.0,0.00064108,60]
[358503576,1745218247338,-524.33665358,0.00064108,120]
[358503577,1745218247347,-522.93841972,0.00064108,120]
[358503578,1745218247357,-521.23041497,0.00064108,120]
[358503579,1745218247366,-530.67284571,0.00064108,120]
[358503580,1745218247375,-500.0,0.00064108,120]
[358503581,1745218247384,-500.0,0.00064108,14]
[358503582,1745218247394,-551.27735503,0.00064108,120]
[358503583,1745218247403,-535.53198131,0.00064108,120]
[358503584,1745218247412,-500.0,0.00064108,120]
[358503585,1745218247422,-500.0,0.00064108,120]
[358503586,1745218247432,-551.60882629,0.00064108,120]
[358503587,1745218247441,-523.19346821,0.00064108,120]
[358503588,1745218247451,-548.8843868,0.00064108,120]
[358503589,1745218247461,-500.0,0.00064108,120]
[358503590,1745218247471,-548.75182832,0.00064108,120]
[358503591,1745218247480,-500.0,0.00064108,120]
[358503592,1745218247490,-568.62886242,0.00064108,120]
[358503593,1745218247499,-500.0,0.00064108,120]
[358503594,1745218247509,-575.4548211,0.00064108,120]
[358503595,1745218247518,-563.05069407,0.00064108,120]
[358503596,1745218247528,-500.0,0.00064108,120]
[358503597,1745218247537,-606.57,0.00064108,120]
[358503598,1745218247547,-500.0,0.00064108,120]
[358503599,1745218247557,-500.0,0.00064108,120]
[358503600,1745218247566,-500.0,0.00064108,120]
[358503601,1745218247575,-500.0,0.00064108,120]
[358503602,1745218247585,-500.0,0.00064108,120]
[358503603,1745218247594,-500.0,0.00064108,120]
[358503604,1745218247604,-500.0,0.00064108,120]
[358503605,1745218247613,-500.0,0.00064108,120]
[358503606,1745218247623,-523.01181868,0.00064108,120]
[358503607,1745218247632,-500.0,0.00064108,120]
[358503608,1745218247642,-500.0,0.00064108,120]
[358503609,1745218247651,-508.81272501,0.00064108,120]
[358503610,1745218247765,-500.0,0.00064108,120]
[358503611,1745218247775,-500.0,0.00064108,120]
[358503612,1745218247785,-500.0,0.00064108,120]
[358503613,1745218247794,-527.68140505,0.00064108,120]
[358503614,1745218247803,-500.0,0.00064108,120]
[358503615,1745218247813,-545.22833624,0.00064108,120]
[358503616,1745218247822,-500.0,0.00064108,120]
[358503617,1745218247831,-512.93811518,0.00064108,120]
[358503618,1745218247841,-570.58786029,0.00064108,120]
[358503619,1745218247850,-500.0,0.00064108,120]
[358503620,1745218247859,-500.0,0.00064108,120]
[358503621,1745218247869,-500.0,0.00064108,120]
[358503622,1745218247878,-500.0,0.00064108,120]
[358503623,1745218247888,-500.0,0.00064108,120]
[358503624,1745218247897,-291.94913225,0.00064108,120]
[358503625,1745218247906,-566.2878573,0.00064108,120]
[358503626,1745218247916,-541.58487693,0.00064108,120]
[358503627,1745218247925,-549.37538786,0.00064108,120]
[358503628,1745218247934,-300.0,0.00064108,120]
[358503629,1745218247943,-500.0,0.00064108,120]
[358503630,1745218247953,-500.0,0.00064108,120]
[358503631,1745218247962,-500.0,0.00064108,120]
[358503632,1745218247972,-500.0,0.00064108,120]
[358503633,1745218247981,-500.0,0.00064108,120]
[358503634,1745218247990,-500.0,0.00064108,120]
[358503635,1745218247999,-500.0,0.00064108,120]
[358503636,1745218248008,-500.0,0.00064108,120]
[358503637,1745218248017,-500.0,0.00064108,120]
[358503638,1745218248027,-500.0,0.00064108,120]
[358503639,1745218248036,-508.97333548,0.00064108,120]
[358503640,1745218248045,-500.0,0.00064108,120]
[358503641,1745218248055,-500.0,0.00064108,120]
[358503642,1745218248064,-500.0,0.00064108,120]
[358503643,1745218248074,-556.56704273,0.00064108,120]
[358503644,1745218248083,-307.87901725,0.00064108,120]
[358503645,1745218248093,-579.60762912,0.00064108,120]
[358503646,1745218248102,-500.0,0.00064108,120]
[358503647,1745218248112,-500.0,0.00064108,120]
[358503648,1745218248121,-500.0,0.00064108,120]
[358503649,1745218248131,-240.6951948,0.00064108,120]
[358503650,1745218248141,-182.24609953,0.00064108,120]
[358503651,1745218248151,-500.0,0.00064108,120]
[358503652,1745218248160,-500.0,0.00064108,120]
[358503653,1745218248170,-500.0,0.00064108,120]
[358503654,1745218248179,-564.48780344,0.00064108,120]
[358503655,1745218248188,-500.0,0.00064108,120]
[358503656,1745218248197,-519.75703681,0.00064108,120]
[358503657,1745218248206,-507.27195687,0.00064108,120]
[358503658,1745218248215,-500.0,0.00064108,120]
[358503659,1745218248226,-590.88,0.00064108,120]
[358503660,1745218248236,-500.0,0.00064108,30]
[358503661,1745218248246,-530.00277573,0.00064108,120]
[358503662,1745218248255,-500.0,0.00064108,120]
[358503663,1745218248265,-278.13441836,0.00064108,120]
[358503664,1745218248275,-553.39676626,0.00064108,120]
[358503665,1745218248284,-500.0,0.00064108,120]
[358503666,1745218248293,-512.69045638,0.00064108,120]
[358503667,1745218248303,-500.0,0.00064108,120]
[358503668,1745218248313,-500.0,0.00064108,120]
[358503669,1745218248323,-500.0,0.00064108,120]
[358503670,1745218248332,-151.0,0.00064108,120]
[358503671,1745218248341,-151.0,0.00064108,2]
[358503672,1745218248351,-151.0,0.00064108,120]
[358503673,1745218248360,-151.0,0.00064108,120]
[358503674,1745218248370,-151.0,0.00064108,120]
[358503675,1745218248379,-157.81266845,0.00064109,120]
[358503676,1745218248389,-500.0,0.00064109,120]
[358503677,1745218248399,-500.0,0.00064109,120]
[358503678,1745218248408,-500.0,0.00064109,120]
[358503679,1745218248417,-542.75,0.00064109,120]
[358503680,1745218248427,-500.0,0.00064109,120]
[358503681,1745218248437,-973.42,0.00064109,120]
[358503682,1745218248446,-559.56,0.00064109,120]
[358503683,1745218248456,-500.0,0.00064109,120]
[358503684,1745218248466,-500.0,0.00064109,120]
[358503685,1745218248476,-500.0,0.00064109,120]
[358503686,1745218248485,-500.0,0.00064109,120]
[358503687,1745218248494,-1586.95,0.00064109,120]
[358503688,1745218248504,-500.0,0.00064109,120]
[358503689,1745218248514,-980.45,0.00064109,120]
[358503690,1745218248524,-500.0,0.00064109,120]
[358503691,1745218248533,-500.0,0.00064109,12]
[358503692,1745218248543,-155.56,0.00064109,120]
[358503693,1745218248552,-500.0,0.00064109,120]
[358503694,1745218248561,-500.0,0.00064109,120]
[358503695,1745218248570,-155.090987,0.00064109,120]
[358503696,1745218248580,-500.0,0.00064109,120]
[358503697,1745218248589,-850.18,0.00064109,120]
[358503698,1745218248598,-151.0,0.00064109,120]
[358503699,1745218248608,-544.89,0.00064109,120]
[358503700,1745218248617,-500.0,0.00064109,120]
[358503701,1745218248626,-500.0,0.00064109,120]
[358503702,1745218248635,-1028.09,0.00064109,120]
[358503703,1745218248645,-500.0,0.00064109,120]
[358503704,1745218248654,-512.97,0.00064109,120]
[358503705,1745218248663,-500.0,0.00064109,120]
[358503706,1745218248674,-500.0,0.00064109,120]
[358503707,1745218248685,-541.41,0.00064109,120]
[358503708,1745218248695,-500.0,0.00064109,120]
[358503709,1745218248705,-500.0,0.00064109,120]
[358503710,1745218248714,-906.7,0.00064109,120]
[358503711,1745218248724,-500.0,0.00064109,120]
[358503712,1745218248733,-1554.76,0.00064109,2]
[358503713,1745218248742,-519.11,0.00064109,120]
[358503714,1745218248752,-500.0,0.00064109,120]
[358503715,1745218248762,-500.0,0.00064109,120]
[358503716,1745218248773,-676.59,0.00064109,120]
[358503717,1745218248783,-500.0,0.00064109,120]
[358503718,1745218248793,-646.12,0.00064109,120]
[358503719,1745218248802,-500.0,0.00064109,120]
[358503720,1745218248812,-564.28,0.00064109,120]
[358503721,1745218248822,-500.0,0.00064109,120]
[358503722,1745218248831,-6707.36,0.00064109,7]
[358503723,1745218248841,-500.0,0.00064109,2]
[358503724,1745218248850,-427.32,0.00064109,120]
[358503725,1745218248860,-500.0,0.00064109,120]
[358503726,1745218248870,-15630.7259883,0.0006417,120]
[358503727,1745218248879,-500.0,0.00064173,4]
[358503728,1745218248889,-152.7,0.000642,60]
[358503729,1745218248899,-2000.0,0.000644,120]
[358503730,1745218248909,-22208.4861242,0.00064546,4]
[358503731,1745218248918,-15268.0266471,0.00064546,5]
[358503732,1745218248927,-1000.9,0.00064555,120]
[358503733,1745218248937,-150.0,0.00064555,120]
[358503734,1745218248946,-500.0,0.00064556,2]
[358503735,1745218248954,-36170.9236,0.00064556,2]
[358503736,1745218248964,-14937.3638,0.00064556,2]
[358503737,1745218248973,-151.0,0.00064556,2]
[358503738,1745218248983,-151.0,0.00064556,120]
[358503739,1745218248992,-502.60956591,0.00064619,120]
[358503740,1745218249002,-500.0,0.00064619,120]
[358503741,1745218249011,-500.0,0.00064619,120]
[358503742,1745218249021,-500.0,0.00064619,120]
[358503743,1745218249031,-22208.4861242,0.00064646,4]
[358503744,1745218249040,-22208.4861242,0.00064647,4]
[358503745,1745218249050,-500.0,0.00064655,120]
[358503746,1745218249060,-515.84847871,0.00064655,120]
[358503747,1745218249069,-500.0,0.00064656,120]
[358503748,1745218249079,-500.0,0.00064656,120]
[358503749,1745218249088,-500.0,0.00064656,120]
[358503750,1745218249097,-514.26326675,0.00064656,120]
[358503751,1745218249106,-513.54209878,0.00064656,120]
[358503752,1745218249115,-541.74971052,0.00064656,120]
[358503753,1745218249125,-518.00561384,0.00064656,120]
[358503754,1745218249134,-591.99,0.00064656,120]
[358503755,1745218249143,-500.0,0.00064656,120]
[358503756,1745218249161,-500.0,0.00064656,120]
[358503757,1745218249175,-643.94,0.00064656,120]
[358503758,1745218249184,-534.86518278,0.00064656,120]
[358503759,1745218249193,-500.0,0.00064656,120]
[358503760,1745218249203,-566.98768901,0.00064656,120]
[358503761,1745218249212,-500.0,0.00064656,120]
[358503762,1745218249223,-500.0,0.00064656,120]
[358503763,1745218249236,-641.66967959,0.00064656,120]
[358503764,1745218249245,-500.0,0.00064656,120]
[358503765,1745218249254,-548.24270194,0.00064656,120]
[358503766,1745218249264,-500.0,0.00064656,120]
[358503767,1745218249279,-500.0,0.00064656,120]
[358503768,1745218249294,-514.73421349,0.00064656,120]
[358503769,1745218249304,-338.57329336,0.00064656,120]
[358503770,1745218249314,-500.0,0.00064656,120]
[358503771,1745218249324,-547.99640149,0.00064656,120]
[358503772,1745218249334,-500.0,0.00064656,120]
[358503773,1745218249344,-500.0,0.00064656,120]
[358503774,1745218249353,-497.14838046,0.00064656,60]
[358503775,1745218249363,-500.0,0.00064656,14]
[358503776,1745218249374,-647.81502433,0.00064656,120]
[358503777,1745218249383,-174.87,0.00064656,120]
[358503778,1745218249393,-478.09306118,0.00064656,120]
[358503779,1745218249403,-533.56,0.00064656,120]
[358503780,1745218249412,-500.0,0.00064656,120]
[358503781,1745218249422,-500.0,0.00064656,120]
[358503782,1745218249432,-500.0,0.00064656,120]
[358503783,1745218249441,-233.66,0.00064656,120]
[358503784,1745218249451,-500.0,0.00064656,120]
[358503785,1745218249460,-500.0,0.00064656,120]
[358503786,1745218249469,-500.0,0.00064657,120]
[358503787,1745218249479,-500.0,0.00064657,120]
[358503788,1745218249488,-500.0,0.00064657,120]
[358503789,1745218249498,-973.42,0.00064657,120]
[358503790,1745218249507,-500.0,0.00064657,120]
[358503791,1745218249517,-500.0,0.00064657,120]
[358503792,1745218249527,-500.0,0.00064657,120]
[358503793,1745218249536,-500.0,0.00064657,120]
[358503794,1745218249545,-1586.95,0.00064657,120]
[358503795,1745218249555,-500.0,0.00064657,120]
[358503796,1745218249564,-980.45,0.00064657,120]
[358503797,1745218249573,-500.0,0.00064657,120]
[358503798,1745218249583,-500.0,0.00064657,12]
[358503799,1745218249592,-500.0,0.00064657,120]
[358503800,1745218249602,-500.0,0.00064657,120]
[358503801,1745218249611,-500.0,0.00064657,120]
[358503802,1745218249620,-850.18,0.00064657,120]
[358503803,1745218249630,-544.89,0.00064657,120]
[358503804,1745218249640,-500.0,0.00064657,120]
[358503805,1745218249649,-500.0,0.00064657,120]
[358503806,1745218249659,-1028.09,0.00064657,120]
[358503807,1745218249669,-500.0,0.00064657,120]
[358503808,1745218249678,-512.97,0.00064657,120]
[358503809,1745218249688,-500.0,0.00064657,120]
[358503810,1745218249698,-500.0,0.00064657,120]
[358503811,1745218249707,-541.41,0.00064657,120]
[358503812,1745218249717,-500.0,0.00064657,120]
[358503813,1745218249726,-500.0,0.00064657,120]
[358503814,1745218249736,-906.7,0.00064657,120]
[358503815,1745218249745,-500.0,0.00064657,120]
[358503816,1745218249755,-1554.76,0.00064657,2]
[358503817,1745218249764,-519.11,0.00064657,120]
[358503818,1745218249774,-500.0,0.00064657,120]
[358503819,1745218249783,-500.0,0.00064657,120]
[358503820,1745218249792,-676.59,0.00064657,120]
[358503821,1745218249801,-500.0,0.00064657,120]
[358503822,1745218249810,-646.12,0.00064657,120]
[358503823,1745218249820,-500.0,0.00064657,120]
[358503824,1745218249829,-564.28,0.00064657,120]
[358503825,1745218249839,-505.67797566,0.00064657,120]
[358503826,1745218249848,-5157.39485129,0.00064657,7]
[358503830,1745218372408,10000.0,0.000305,30]
[358503831,1745218379537,10000.0,0.000305,30]
[358503832,1745218386695,10000.0,0.000305,30]
[358503833,1745218396442,10000.0,0.000305,30]
[358503834,1745218406430,10000.0,0.000305,30]
[358503835,1745218420805,10000.0,0.000305,30]
[358503836,1745218429564,10000.0,0.000305,30]
[358503837,1745218633927,450.0,0.00017,2]
[358503838,1745218706522,152.3969889,0.0003,14]
[358503839,1745218803475,-151.13832585,0.0002985,2]
[358503841,1745218818898,-157.580309,0.0003555,2]
[358503844,1745219072148,-500.0,0.00043,30]
[358503845,1745219072172,-500.0,0.00045,30]
[358503846,1745219072195,-157.580309,0.000471,2]
[358503847,1745219072224,-152.84,0.000484,45]
[358503848,1745219072253,-152.84,0.000484,45]
[358503849,1745219072281,-152.84,0.000484,45]
[358503850,1745219072306,-194.4254207,0.00048678,2]
[358503851,1745219072329,-500.0,0.00048778,30]
[358503852,1745219072351,-192.441916,0.00049245,2]
[358503853,1745219072372,-665.41954387,0.00049493,2]
[358503854,1745219072396,-250.0,0.0005005,2]
[358503855,1745219072420,-500.0,0.00050301,60]
[358503856,1745219072446,-500.0,0.00050524,60]
[358503857,1745219072473,-500.0,0.00050635,60]
[358503858,1745219072499,-500.0,0.00051474,60]
[358503859,1745219072523,-736.75,0.00051496,2]
[358503860,1745219072545,-498.24907148,0.00051712,60]
[358503861,1745219072567,-2377.8,0.00051903,2]
[358503862,1745219072590,-500.0,0.00051913,60]
[358503863,1745219072617,-600.0,0.00052117,10]
[358503864,1745219072640,-1421.78,0.00052118,2]
[358503865,1745219072665,-152.86,0.00052264,120]
[358503866,1745219072690,-500.0,0.00052275,60]
[358503867,1745219072712,-161.95,0.00052301,2]
[358503868,1745219072736,-293.14,0.00052362,2]
[358503869,1745219072761,-224.974,0.00052419,96]
[358503870,1745219072783,-1582.53,0.00052419,2]
[358503871,1745219072809,-500.0,0.00052968,60]
[358503872,1745219072846,-352.9,0.00052978,2]
[358503873,1745219072878,-500.0,0.00053091,60]
[358503874,1745219072904,-550.0,0.00053091,9]
[358503875,1745219072927,-20981.36,0.00053251,2]
[358503876,1745219072951,-166.68,0.000533,2]
[358503877,1745219072976,-500.0,0.00053339,60]
[358503878,1745219073001,-500.0,0.0005363,60]
[358503879,1745219073023,-176.65,0.00053695,2]
[358503880,1745219073048,-736.75,0.0005376,2]
[358503881,1745219073072,-2351.43,0.00053979,2]
[358503882,1745219073097,-1000.0,0.00054,30]
[358503883,1745219073121,-1000.0,0.00054,30]
[358503884,1745219073145,-1000.0,0.00054,25]
[358503885,1745219073168,-1000.0,0.00054,25]
[358503886,1745219073191,-1000.0,0.00054,25]
[358503887,1745219073219,-1000.0,0.00054,20]
[358503888,1745219073242,-1000.0,0.00054,20]
[358503889,1745219073266,-1000.0,0.00054,20]
[358503890,1745219073293,-1000.0,0.00054,15]
[358503891,1745219073316,-1000.0,0.00054,15]
[358503892,1745219073339,-1000.0,0.00054,15]
[358503893,1745219073363,-496.0,0.00054,7]
[358503894,1745219073386,-1000.0,0.00054,7]
[358503895,1745219073409,-1000.0,0.00054,7]
[358503896,1745219073432,-1000.0,0.00054,18]
[358503897,1745219073456,-1000.0,0.00054,18]
[358503898,1745219073480,-1000.0,0.00054,18]
[358503899,1745219073506,-1014.0,0.00054,12]
[358503900,1745219073529,-1000.0,0.00054,9]
[358503901,1745219073553,-1000.0,0.00054,9]
[358503902,1745219073577,-500.0,0.00054087,60]
[358503903,1745219073605,-500.0,0.00054426,60]
[358503904,1745219073630,-500.0,0.00054486,60]
[358503905,1745219073655,-500.0,0.00054538,60]
[358503906,1745219073682,-721.0524308,0.0005469,15]
[358503907,1745219073707,-194.0,0.000547,120]
[358503908,1745219073737,-152.84,0.000547,54]
[358503909,1745219073772,-152.84,0.000547,54]
[358503910,1745219073801,-152.84,0.000547,54]
[358503911,1745219073832,-152.84,0.000547,54]
[358503912,1745219073863,-152.84,0.000547,54]
[358503913,1745219073892,-152.84,0.000547,54]
[358503914,1745219073917,-8277.1926,0.000547,2]
[358503915,1745219073941,-3023.04240855,0.000547,15]
[358503916,1745219073964,-500.0,0.00054789,30]
[358503917,1745219073988,-647.32558758,0.0005479,26]
[358503918,1745219074011,-460648.709501,0.0005479,4]
[358503919,1745219074035,-218036.27870442,0.0005479,4]
[358503921,1745219239130,-151.0,0.00040247,2]
[358503922,1745219239157,-39.3027398,0.000484,45]
[358503925,1745219431610,-5000.0,0.000471,30]
[358503926,1745219431620,-665.41954388,0.000483,2]
[358503927,1745219431629,-113.5672602,0.000484,45]
[358503928,1745219431639,-152.87,0.000484,45]
[358503929,1745219431649,-2992.37675641,0.00048523,2]
[358503930,1745219431659,-500.0,0.00050297,60]
[358503931,1745219431668,-300.0,0.00050887,15]
[358503932,1745219431678,-500.0,0.00050888,60]
[358503933,1745219431688,-500.0,0.00050932,60]
[358503934,1745219431697,-500.0,0.00051428,60]
[358503935,1745219431706,-500.0,0.00051476,60]
[358503936,1745219431714,-500.0,0.00052084,60]
[358503937,1745219431726,-500.0,0.00052395,60]
[358503938,1745219431736,-500.0,0.0005246,60]
[358503939,1745219431745,-500.0,0.0005308,60]
[358503940,1745219431755,-1557.35,0.00053285,120]
[358503941,1745219431767,-107.40220963,0.00053286,2]
[358503942,1745219431779,-42.59779037,0.00053286,2]
[358503943,1745219431789,-611.39270035,0.00053305,2]
[358503944,1745219431802,-7933.5579185,0.00053305,2]
[358503945,1745219431813,-15355.04938115,0.00053305,2]
[358503946,1745219431828,-250.0,0.00053376,120]
[358503947,1745219431838,-623.0,0.00054,20]
[358503948,1745219431847,-1000.0,0.00054,9]
[358503949,1745219431857,-22980.91178745,0.00054,30]
[358503950,1745219431868,-849.77561802,0.00054,30]
[358503951,1745219431883,-1956.94,0.00054,30]
[358503952,1745219431895,-6458.40075542,0.00054,30]
[358503953,1745219431905,-500.0,0.00054527,60]
[358503954,1745219431914,-180.59,0.0005459,2]
[358503955,1745219431923,-150.0,0.00054597,7]
[358503956,1745219431933,-2297.44263,0.000546,120]
[358503957,1745219431943,-152.87,0.000547,54]
[358503958,1745219431951,-152.87,0.000547,54]
[358503961,1745219431964,-152.87,0.000547,54]
[358503963,1745219431974,-152.87,0.000547,54]
[358503965,1745219431983,-17296.607,0.000547,2]
[358503966,1745219431992,-5721.2041,0.000547,2]
[358503967,1745219432001,-604.17054838,0.000547,26]
[358503968,1745219432011,-166.75293362,0.000547,32]
[358503969,1745219432020,-2720.73816774,0.000547,15]
[358503970,1745219432030,-648.94718772,0.000547,15]
[358503971,1745219432039,-948.89083035,0.000547,2]
[358503972,1745219432050,-1551.10916965,0.000547,2]
[358503973,1745219432060,-4039.79726049,0.000547,30]
[358503974,1745219432069,-1000.0,0.00054711,120]
[358503975,1745219432079,-502.15161164,0.00054773,10]
[358503976,1745219432089,-500.0,0.00054773,10]
[358503977,1745219432098,-500.0,0.00054773,10]
[358503978,1745219432107,-507.84900827,0.00054773,10]
[358503979,1745219432116,-666.0,0.00054799,120]
[358503980,1745219432125,-408.57229255,0.00054799,30]
[358503981,1745219432135,-500.0,0.00054799,60]
[358503982,1745219432144,-500.0,0.00054799,120]
[358503983,1745219432154,-159.97423571,0.00054799,120]
[358503984,1745219432163,-153.03236462,0.00054799,120]
[358503985,1745219432173,-340.78155595,0.00054799,120]
[358503986,1745219432182,-500.0,0.00054799,120]
[358503987,1745219432191,-500.0,0.00054799,120]
[358503988,1745219432200,-263.63066355,0.00054799,120]
[358503989,1745219432210,-1158.22165962,0.00054799,120]
[358503990,1745219432219,-79685.92878525,0.000548,120]
[358503991,1745219432333,-628.42,0.000548,120]
[358503992,1745219432345,-1139.681725,0.000548,120]
[358503993,1745219432357,-2704.95483257,0.000548,120]
[358503994,1745219432368,-1401.37369004,0.000548,120]
[358503995,1745219432379,-950.26546194,0.000548,120]
[358503996,1745219432390,-1266.60175907,0.000548,120]
[358503997,1745219432401,-413.21193929,0.000548,120]
[358503998,1745219432412,-2208.97184433,0.000548,120]
[358503999,1745219432423,-500.0,0.000548,120]
[358504000,1745219432433,-94547.63177642,0.000548,120]
[358504001,1745219432448,-8817.86193103,0.000548,120]
[358504002,1745219432459,-7219.04607583,0.000548,120]
[358504003,1745219432470,-8954.40243295,0.000548,120]
[358504004,1745219432485,-580.09410336,0.000548,120]
[358504005,1745219432496,-4579.72925048,0.000548,120]
[358504006,1745219432507,-741.54979015,0.000548,120]
[358504007,1745219432583,-1400.40564141,0.000548,120]
[358504008,1745219432595,-419.91705816,0.000548,120]
[358504014,1745219437918,-614.6374616,0.000548,120]
[358504015,1745219437929,-14964.35359562,0.000548,120]
[358504016,1745219437940,-925.1,0.000548,120]
[358504017,1745219437952,-265334.8608455,0.000548,120]
[358504018,1745219437962,-124968.27870874,0.000548,120]
[358504019,1745219437974,-375030.72129126,0.000548,120]
[358504020,1745219437983,-174.24,0.000548,60]
[358504021,1745219437992,-160.071736,0.000548,120]
[358504022,1745219438001,-151.0,0.000548,120]
[358504023,1745219438011,-3900.0,0.000548,20]
[358504024,1745219438021,-500.0,0.00054835,60]
[358504025,1745219438030,-682.65744115,0.00054879,120]
[358504026,1745219438039,-7800.0,0.000549,20]
[358504027,1745219438048,-151.0,0.00055,120]
[358504028,1745219438057,-169.0,0.00055,120]
[358504029,1745219438066,-510.23817171,0.0005528,14]
[358504030,1745219438076,-511.12929153,0.0005528,14]
[358504031,1745219438086,-736.75,0.00056024,2]
[358504032,1745219438095,-151.0,0.00056265,120]
[358504033,1745219438104,-2720.73816765,0.00056889,15]
[358504034,1745219438113,-648.94718772,0.00056889,15]
[358504035,1745219438123,-500.0,0.0005722,120]
[358504036,1745219438133,-690.59,0.00057261,30]
[358504037,1745219438145,-449.47,0.00057398,30]
[358504038,1745219438155,-151.15,0.00057398,30]
[358504039,1745219438163,-417.31,0.00057398,30]
[358504040,1745219438173,-350.68,0.00057398,30]
[358504041,1745219438183,-168.38,0.00057398,30]
[358504042,1745219438192,-449.47,0.00057398,30]
[358504043,1745219438202,-350.68,0.00057398,30]
[358504044,1745219438212,-346.84,0.00057398,30]